fUSD/lending_fUSD_20240613
["ID","MTS","AMOUNT","RATE_DAILY","PERIOD"]
[329338182,1718258194889,-451.16905023,0.00031909,30]
[329338183,1718258194937,-369.594,0.00031909,30]
[329338184,1718258194995,-1048.87627229,0.00031909,120]
[329338185,1718258195031,-153.99657441,0.00031909,30]
[329338186,1718258195074,-1000.0,0.00031909,30]
[329338187,1718258195104,-2000.0,0.00031909,120]
[329338188,1718258195142,-151.97788158,0.00031909,120]
[329338189,1718258195176,-614.25499123,0.00031909,30]
[329338190,1718258195209,-516.8368943,0.00031909,30]
[329338191,1718258195243,-510.23726201,0.00031909,30]
[329338192,1718258195295,-508.3662364,0.00031909,30]
[329338193,1718258195334,-501.89978709,0.00031909,30]
[329338194,1718258195377,-500.0,0.00031909,30]
[329338195,1718258195409,-504.29435281,0.00031909,30]
[329338196,1718258195488,-294.26174861,0.00031909,30]
[329338197,1718258195524,-557.29455416,0.00031909,30]
[329338198,1718258195561,-507.36661871,0.00031909,30]
[329338199,1718258195620,-504.59428477,0.00031909,30]
[329338200,1718258195668,-559.41380608,0.00031909,30]
[329338201,1718258195709,-312.09346571,0.00031909,30]
[329338202,1718258195738,-503.50782847,0.00031909,30]
[329338203,1718258195771,-507.63832853,0.00031909,30]
[329338204,1718258195801,-504.15833895,0.00031909,30]
[329338205,1718258195830,-504.50478651,0.00031909,30]
[329338206,1718258195856,-505.26023426,0.00031909,30]
[329338207,1718258195908,-511.61499763,0.00031909,30]
[329338208,1718258195935,-502.84783953,0.00031909,30]
[329338209,1718258195964,-500.0,0.00031909,30]
[329338210,1718258195992,-155.82261369,0.00031909,30]
[329338211,1718258196029,-504.52571034,0.00031909,30]
[329338212,1718258196059,-627.12923407,0.00031909,30]
[329338213,1718258196088,-504.96407651,0.00031909,30]
[329338214,1718258196116,-503.99734849,0.00031909,30]
[329338215,1718258196144,-504.08769838,0.00031909,30]
[329338216,1718258196174,-503.13554408,0.00031909,30]
[329338217,1718258196218,-504.47775144,0.00031909,30]
[329338218,1718258196280,-502.75298141,0.00031909,30]
[329338219,1718258196329,-507.21960182,0.00031909,30]
[329338220,1718258196363,-505.21401059,0.00031909,30]
[329338221,1718258196407,-522.9048908,0.00031909,30]
[329338222,1718258196467,-500.0,0.00031909,30]
[329338223,1718258196498,-523.53729103,0.00031909,30]
[329338224,1718258196533,-500.0,0.00031909,30]
[329338225,1718258196567,-605.18949094,0.00031909,30]
[329338226,1718258196603,-152.8829837,0.00031909,30]
[329338227,1718258196632,-622.21047048,0.00031909,30]
[329338228,1718258196664,-311.02003329,0.00031909,30]
[329338229,1718258196694,-306.40573513,0.00031909,30]
[329338230,1718258196832,-506.54576403,0.00031909,30]
[329338231,1718258196864,-607.66326523,0.00031909,30]
[329338232,1718258196895,-510.28543322,0.00031909,30]
[329338233,1718258196933,-510.48864849,0.00031909,30]
[329338234,1718258196962,-502.19990779,0.00031909,30]
[329338235,1718258196992,-511.33935795,0.00031909,30]
[329338236,1718258197025,-412.95965605,0.00031909,30]
[329338237,1718258197056,-509.74296656,0.00031909,30]
[329338238,1718258197088,-500.0,0.00031909,30]
[329338239,1718258197118,-343.77164055,0.00031909,30]
[329338240,1718258197147,-509.04186072,0.00031909,30]
[329338241,1718258197183,-502.44070443,0.00031909,30]
[329338242,1718258197215,-505.68934007,0.00031909,30]
[329338243,1718258197245,-504.24034409,0.00031909,30]
[329338244,1718258197298,-500.0,0.00031909,30]
[329338245,1718258197334,-504.22785017,0.00031909,30]
[329338246,1718258197365,-579.45481298,0.00031909,30]
[329338247,1718258197400,-508.23804102,0.00031909,30]
[329338248,1718258197429,-504.4752663,0.00031909,30]
[329338249,1718258197492,-508.11862196,0.00031909,30]
[329338250,1718258197524,-500.46929413,0.00031909,30]
[329338251,1718258197565,-504.37404978,0.00031909,30]
[329338252,1718258197603,-504.58523982,0.00031909,30]
[329338253,1718258197637,-507.78470667,0.00031909,30]
[329338254,1718258197666,-551.53643669,0.00031909,30]
[329338255,1718258197700,-505.82714356,0.00031909,30]
[329338256,1718258197740,-509.25369354,0.00031909,30]
[329338257,1718258197777,-504.3840641,0.00031909,30]
[329338258,1718258197807,-503.14225466,0.00031909,30]
[329338259,1718258197842,-514.84280607,0.00031909,30]
[329338260,1718258197882,-387.32862899,0.00031909,30]
[329338261,1718258197909,-500.0,0.00031909,30]
[329338262,1718258197936,-505.00147949,0.00031909,30]
[329338263,1718258197963,-504.48504944,0.00031909,30]
[329338264,1718258197990,-505.4250939,0.00031909,30]
[329338265,1718258198017,-500.0,0.00031909,30]
[329338266,1718258198047,-500.0,0.00031909,30]
[329338267,1718258198099,-500.0,0.00031909,30]
[329338268,1718258198134,-508.70681838,0.00031909,30]
[329338269,1718258198178,-195.25970446,0.00031909,30]
[329338270,1718258198214,-507.24117814,0.00031909,30]
[329338271,1718258198249,-500.0,0.00031909,30]
[329338272,1718258198286,-500.0,0.00031909,30]
[329338273,1718258198320,-604.61669232,0.00031909,30]
[329338274,1718258198349,-504.47443407,0.00031909,30]
[329338275,1718258198389,-505.24833918,0.00031909,30]
[329338276,1718258198425,-508.3749282,0.00031909,30]
[329338277,1718258198469,-500.0,0.00031909,30]
[329338278,1718258198502,-505.49701329,0.00031909,30]
[329338279,1718258198531,-505.12573236,0.00031909,30]
[329338280,1718258198567,-500.0,0.00031909,30]
[329338281,1718258198598,-216.40216741,0.00031909,30]
[329338282,1718258198633,-291.55313651,0.00031909,30]
[329338283,1718258198667,-505.35132306,0.00031909,30]
[329338284,1718258198696,-296.94250111,0.00031909,30]
[329338285,1718258198728,-508.88658343,0.00031909,30]
[329338286,1718258198770,-502.34949246,0.00031909,30]
[329338287,1718258198818,-505.58833537,0.00031909,30]
[329338288,1718258198848,-506.49838008,0.00031909,30]
[329338289,1718258198877,-509.80000872,0.00031909,30]
[329338290,1718258198909,-507.07509587,0.00031909,30]
[329338291,1718258198959,-500.0,0.00031909,30]
[329338292,1718258198990,-505.28227427,0.00031909,30]
[329338293,1718258199020,-500.0,0.00031909,30]
[329338294,1718258199057,-500.0,0.00031909,30]
[329338295,1718258199099,-511.99069901,0.00031909,30]
[329338296,1718258199130,-500.0,0.00031909,30]
[329338297,1718258199163,-500.0,0.00031909,30]
[329338298,1718258199192,-506.12189061,0.00031909,30]
[329338299,1718258199226,-500.0,0.00031909,30]
[329338300,1718258199277,-500.0,0.00031909,30]
[329338301,1718258199327,-500.0,0.00031909,30]
[329338302,1718258199367,-518.08006951,0.00031909,30]
[329338303,1718258199574,-500.0,0.00031909,30]
[329338304,1718258199615,-258.04755901,0.00031909,30]
[329338305,1718258199650,-500.0,0.00031909,30]
[329338306,1718258199681,-383.00701973,0.00031909,30]
[329338307,1718258199714,-512.11890635,0.00031909,30]
[329338308,1718258199745,-507.63938356,0.00031909,30]
[329338309,1718258199776,-505.73602669,0.00031909,30]
[329338310,1718258199807,-509.09506842,0.00031909,30]
[329338311,1718258199843,-508.98425012,0.00031909,30]
[329338312,1718258199873,-510.397974,0.00031909,30]
[329338313,1718258199907,-500.0,0.00031909,30]
[329338314,1718258199943,-500.0,0.00031909,30]
[329338315,1718258199978,-500.0,0.00031909,30]
[329338316,1718258200014,-500.0,0.00031909,30]
[329338317,1718258200055,-259.49586226,0.00031909,30]
[329338318,1718258200090,-505.4377275,0.00031909,30]
[329338319,1718258200122,-504.99284195,0.00031909,30]
[329338320,1718258200156,-507.18606479,0.00031909,30]
[329338321,1718258200190,-500.0,0.00031909,30]
[329338322,1718258200224,-500.0,0.00031909,30]
[329338323,1718258200264,-500.0,0.00031909,30]
[329338324,1718258200308,-582.27423429,0.00031909,30]
[329338325,1718258200365,-500.0,0.00031909,30]
[329338326,1718258200412,-500.0,0.00031909,30]
[329338327,1718258200463,-500.0,0.00031909,30]
[329338328,1718258200497,-500.0,0.00031909,30]
[329338329,1718258200532,-251.07416922,0.00031909,30]
[329338330,1718258200562,-506.64798738,0.00031909,30]
[329338331,1718258200596,-507.60875351,0.00031909,30]
[329338332,1718258200671,-500.0,0.00031909,30]
[329338333,1718258200708,-514.15151241,0.00031909,30]
[329338334,1718258200744,-500.0,0.00031909,30]
[329338335,1718258200812,-587.4824191,0.00031909,30]
[329338336,1718258200856,-500.0,0.00031909,30]
[329338337,1718258200894,-537.94426481,0.00031909,30]
[329338338,1718258200935,-502.89200249,0.00031909,30]
[329338339,1718258201009,-595.96816991,0.00031909,30]
[329338340,1718258201056,-508.72328192,0.00031909,30]
[329338341,1718258201108,-500.0,0.00031909,30]
[329338342,1718258201152,-500.0,0.00031909,30]
[329338343,1718258201193,-500.0,0.00031909,30]
[329338344,1718258201234,-159.37391797,0.00031909,30]
[329338345,1718258201281,-506.85002423,0.00031909,30]
[329338346,1718258201321,-520.9486727,0.00031909,30]
[329338347,1718258201368,-512.77438956,0.00031909,30]
[329338348,1718258201415,-500.0,0.00031909,30]
[329338349,1718258201471,-507.07498568,0.00031909,30]
[329338350,1718258201518,-500.0,0.00031909,30]
[329338351,1718258201564,-500.0,0.00031909,30]
[329338352,1718258201608,-286.64259174,0.00031909,30]
[329338353,1718258201649,-186.63938942,0.00031909,30]
[329338354,1718258201693,-563.59027136,0.00031909,30]
[329338355,1718258201746,-2013.76790575,0.00031909,30]
[329338356,1718258201790,-500.0,0.00031909,30]
[329338357,1718258201830,-422.70884185,0.00031909,30]
[329338358,1718258201872,-500.0,0.00031909,30]
[329338359,1718258201913,-510.90558698,0.00031909,30]
[329338360,1718258201953,-509.89245501,0.00031909,30]
[329338361,1718258201991,-500.0,0.00031909,30]
[329338362,1718258202052,-371.25583919,0.00031909,30]
[329338363,1718258202100,-503.854051,0.00031909,30]
[329338364,1718258202146,-502.15975747,0.00031909,30]
[329338365,1718258202188,-510.64689725,0.00031909,30]
[329338366,1718258202230,-503.82757159,0.00031909,30]
[329338367,1718258202274,-495.78903146,0.00031909,30]
[329338368,1718258202318,-514.73309642,0.00031909,30]
[329338369,1718258202365,-505.5019311,0.00031909,30]
[329338370,1718258202407,-503.59964993,0.00031909,30]
[329338371,1718258202464,-500.0,0.00031909,30]
[329338372,1718258202520,-503.23946431,0.00031909,30]
[329338373,1718258202563,-505.14344027,0.00031909,30]
[329338374,1718258202616,-500.0,0.00031909,30]
[329338375,1718258202879,-533.03200263,0.00031909,30]
[329338376,1718258202912,-455.00002696,0.00031909,30]
[329338377,1718258202951,-500.0,0.00031909,30]
[329338378,1718258202982,-500.0,0.00031909,30]
[329338379,1718258203038,-500.0,0.00031909,30]
[329338380,1718258203076,-515.02295586,0.00031909,30]
[329338381,1718258203114,-500.0,0.00031909,30]
[329338382,1718258203143,-500.0,0.00031909,30]
[329338383,1718258203189,-542.22389458,0.00031909,30]
[329338384,1718258203246,-209.47932932,0.00031909,30]
[329338385,1718258203308,-500.0,0.00031909,30]
[329338386,1718258203350,-512.44001678,0.00031909,30]
[329338387,1718258203382,-515.7384079,0.00031909,30]
[329338388,1718258203417,-500.0,0.00031909,30]
[329338389,1718258203467,-502.31155609,0.00031909,30]
[329338390,1718258203499,-500.0,0.00031909,30]
[329338391,1718258203529,-507.69854882,0.00031909,30]
[329338392,1718258203561,-506.48563804,0.00031909,30]
[329338393,1718258203589,-500.0,0.00031909,30]
[329338394,1718258203625,-502.11541938,0.00031909,30]
[329338395,1718258203664,-504.37598969,0.00031909,30]
[329338396,1718258203700,-633.40075381,0.00031909,30]
[329338397,1718258203745,-500.0,0.00031909,30]
[329338398,1718258203776,-531.97666621,0.00031909,30]
[329338399,1718258203807,-504.78090153,0.00031909,30]
[329338400,1718258203837,-509.75235122,0.00031909,30]
[329338401,1718258203868,-505.85664326,0.00031909,30]
[329338402,1718258203898,-504.53345318,0.00031909,30]
[329338403,1718258203937,-504.12007145,0.00031909,30]
[329338404,1718258203975,-500.0,0.00031909,30]
[329338405,1718258204009,-503.88168501,0.00031909,30]
[329338406,1718258204051,-500.0,0.00031909,30]
[329338407,1718258204088,-508.0965813,0.00031909,30]
[329338408,1718258204142,-191.96,0.00031909,30]
[329338409,1718258204182,-517.61828447,0.00031909,30]
[329338410,1718258204226,-508.31450632,0.00031909,30]
[329338411,1718258204265,-508.58977673,0.00031909,30]
[329338412,1718258204309,-503.03513913,0.00031909,30]
[329338413,1718258204345,-508.48052626,0.00031909,30]
[329338414,1718258204390,-500.0,0.00031909,30]
[329338415,1718258204424,-505.73101803,0.00031909,30]
[329338416,1718258204497,-413.58012528,0.00031909,30]
[329338417,1718258204535,-506.63889831,0.00031909,30]
[329338418,1718258204574,-500.0,0.00031909,30]
[329338419,1718258204629,-505.85379212,0.00031909,30]
[329338420,1718258204682,-506.53020305,0.00031909,30]
[329338421,1718258204713,-503.18412253,0.00031909,30]
[329338422,1718258204748,-503.06423819,0.00031909,30]
[329338423,1718258204787,-504.85073956,0.00031909,30]
[329338424,1718258204831,-504.01406687,0.00031909,30]
[329338425,1718258204881,-500.0,0.00031909,30]
[329338426,1718258204948,-283.97608941,0.00031909,30]
[329338427,1718258204990,-500.0,0.00031909,30]
[329338428,1718258205024,-522.11775444,0.00031909,30]
[329338429,1718258205069,-525.65852457,0.00031909,30]
[329338430,1718258205105,-505.98351136,0.00031909,30]
[329338431,1718258205142,-521.9422624,0.00031909,30]
[329338432,1718258205177,-519.21927237,0.00031909,30]
[329338433,1718258205223,-512.04812658,0.00031909,30]
[329338434,1718258205267,-506.61705879,0.00031909,30]
[329338435,1718258205302,-503.58909288,0.00031909,30]
[329338436,1718258205347,-517.29592785,0.00031909,30]
[329338437,1718258205384,-508.91247861,0.00031909,30]
[329338438,1718258205419,-405.87946069,0.00031909,30]
[329338439,1718258205473,-500.0,0.00031909,30]
[329338440,1718258205508,-506.64621343,0.00031909,30]
[329338441,1718258205546,-523.97015734,0.00031909,30]
[329338442,1718258205596,-514.53271143,0.00031909,30]
[329338443,1718258205638,-509.09280413,0.00031909,30]
[329338444,1718258205679,-501.65648775,0.00031909,30]
[329338445,1718258205717,-500.0,0.00031909,30]
[329338446,1718258205775,-500.0,0.00031909,30]
[329338447,1718258205818,-500.0,0.00031909,30]
[329338448,1718258205866,-293.6395272,0.00031909,30]
[329338449,1718258205910,-537.62247113,0.00031909,30]
[329338450,1718258205942,-500.0,0.00031909,30]
[329338451,1718258205975,-517.99935814,0.00031909,30]
[329338452,1718258206009,-506.75193382,0.00031909,30]
[329338453,1718258206042,-461.73043049,0.00031909,30]
[329338454,1718258206074,-504.28240561,0.00031909,30]
[329338455,1718258206104,-507.82388904,0.00031909,30]
[329338456,1718258206135,-507.55140421,0.00031909,30]
[329338457,1718258206165,-513.04895529,0.00031909,30]
[329338458,1718258206197,-511.20007038,0.00031909,30]
[329338459,1718258206231,-506.32840857,0.00031909,30]
[329338460,1718258206264,-500.0,0.00031909,30]
[329338461,1718258206297,-500.0,0.00031909,30]
[329338462,1718258206343,-500.0,0.00031909,30]
[329338463,1718258206377,-506.0154178,0.00031909,30]
[329338464,1718258206415,-500.0,0.00031909,30]
[329338465,1718258206463,-168.28641572,0.00031909,30]
[329338466,1718258206495,-501.2985149,0.00031909,30]
[329338467,1718258206530,-500.0,0.00031909,30]
[329338468,1718258206561,-514.04127212,0.00031909,30]
[329338469,1718258206590,-502.86822464,0.00031909,30]
[329338470,1718258206622,-506.42922554,0.00031909,30]
[329338471,1718258206653,-512.22281807,0.00031909,30]
[329338472,1718258206824,-500.0,0.00031909,30]
[329338473,1718258206853,-402.90446117,0.00031909,30]
[329338474,1718258206881,-508.9026059,0.00031909,30]
[329338475,1718258206924,-505.99244256,0.00031909,30]
[329338476,1718258206960,-507.67661548,0.00031909,30]
[329338477,1718258206988,-500.0,0.00031909,30]
[329338478,1718258207019,-518.23237862,0.00031909,30]
[329338479,1718258207049,-507.73866746,0.00031909,30]
[329338480,1718258207082,-505.51793121,0.00031909,30]
[329338481,1718258207113,-504.86014128,0.00031909,30]
[329338482,1718258207143,-384.34248518,0.00031909,30]
[329338483,1718258207175,-504.46248576,0.00031909,30]
[329338484,1718258207208,-507.20005503,0.00031909,30]
[329338485,1718258207249,-500.0,0.00031909,30]
[329338486,1718258207280,-286.15380932,0.00031909,30]
[329338487,1718258207315,-500.0,0.00031909,30]
[329338488,1718258207346,-549.12042715,0.00031909,30]
[329338489,1718258207385,-500.0,0.00031909,30]
[329338490,1718258207417,-500.0,0.00031909,30]
[329338491,1718258207469,-500.0,0.00031909,30]
[329338492,1718258207501,-500.0,0.00031909,30]
[329338493,1718258207536,-500.0,0.00031909,30]
[329338494,1718258207568,-500.0,0.00031909,30]
[329338495,1718258207600,-573.09233097,0.00031909,30]
[329338496,1718258207634,-506.32520522,0.00031909,30]
[329338497,1718258207665,-500.0,0.00031909,30]
[329338498,1718258207694,-511.21083748,0.00031909,30]
[329338499,1718258207723,-508.65328378,0.00031909,30]
[329338500,1718258207760,-505.94583389,0.00031909,30]
[329338501,1718258207789,-509.41938037,0.00031909,30]
[329338502,1718258207822,-500.0,0.00031909,30]
[329338503,1718258207865,-500.0,0.00031909,30]
[329338504,1718258207897,-532.15976909,0.00031909,30]
[329338505,1718258207928,-512.646814,0.00031909,30]
[329338506,1718258207966,-506.20237777,0.00031909,30]
[329338507,1718258208000,-526.38736447,0.00031909,30]
[329338508,1718258208033,-518.45082344,0.00031909,30]
[329338509,1718258208074,-502.50568049,0.00031909,30]
[329338510,1718258208110,-500.0,0.00031909,30]
[329338511,1718258208140,-229.68814672,0.00031909,30]
[329338512,1718258208171,-508.49938684,0.00031909,30]
[329338513,1718258208201,-580.06819431,0.00031909,30]
[329338514,1718258208231,-500.0,0.00031909,30]
[329338515,1718258208268,-503.78867969,0.00031909,30]
[329338516,1718258208306,-512.70361315,0.00031909,30]
[329338517,1718258208355,-507.76214035,0.00031909,30]
[329338518,1718258208405,-509.2271789,0.00031909,30]
[329338519,1718258208466,-507.94525194,0.00031909,30]
[329338520,1718258208505,-515.29589883,0.00031909,30]
[329338521,1718258208546,-506.64037888,0.00031909,30]
[329338522,1718258208582,-151.39531814,0.00031909,30]
[329338523,1718258208628,-500.0,0.00031909,30]
[329338524,1718258208662,-513.40212781,0.00031909,30]
[329338525,1718258208703,-504.98115212,0.00031909,30]
[329338526,1718258208744,-500.0,0.00031909,30]
[329338527,1718258208780,-500.0,0.00031909,30]
[329338528,1718258208844,-500.0,0.00031909,30]
[329338529,1718258208892,-500.0,0.00031909,30]
[329338530,1718258208930,-500.0,0.00031909,30]
[329338531,1718258208971,-507.26930049,0.00031909,30]
[329338532,1718258209001,-500.0,0.00031909,30]
[329338533,1718258209042,-500.0,0.00031909,30]
[329338534,1718258209078,-501.61573103,0.00031909,30]
[329338535,1718258209132,-500.0,0.00031909,30]
[329338536,1718258209172,-519.84277876,0.00031909,30]
[329338537,1718258209202,-507.88504855,0.00031909,30]
[329338538,1718258209233,-505.20257903,0.00031909,30]
[329338539,1718258209302,-509.11296182,0.00031909,30]
[329338540,1718258209359,-544.06688666,0.00031909,30]
[329338541,1718258209395,-424.57922886,0.00031909,30]
[329338542,1718258209425,-500.0,0.00031909,30]
[329338543,1718258209514,-500.0,0.00031909,30]
[329338544,1718258209544,-509.7822839,0.00031909,30]
[329338545,1718258209578,-505.9933018,0.00031909,30]
[329338546,1718258209635,-239.91851392,0.00031909,30]
[329338547,1718258209675,-502.22975637,0.00031909,30]
[329338548,1718258209730,-502.01190626,0.00031909,30]
[329338549,1718258209770,-500.0,0.00031909,30]
[329338550,1718258209803,-506.9969827,0.00031909,30]
[329338551,1718258209836,-425.26069009,0.00031909,30]
[329338552,1718258209869,-514.74360682,0.00031909,30]
[329338553,1718258209912,-504.41479745,0.00031909,30]
[329338554,1718258209942,-501.26654255,0.00031909,30]
[329338555,1718258209990,-507.96011334,0.00031909,30]
[329338556,1718258210035,-508.42418056,0.00031909,30]
[329338557,1718258210070,-500.0,0.00031909,30]
[329338558,1718258210112,-509.65407256,0.00031909,30]
[329338559,1718258210148,-500.00644418,0.00031909,30]
[329338560,1718258210186,-516.5627705,0.00031909,30]
[329338561,1718258210221,-511.72007575,0.00031909,30]
[329338562,1718258210268,-518.17916269,0.00031909,30]
[329338563,1718258210320,-505.13709909,0.00031909,30]
[329338564,1718258210359,-520.15542143,0.00031909,30]
[329338565,1718258210506,-501.5049827,0.00031909,30]
[329338566,1718258210568,-506.13806071,0.00031909,30]
[329338567,1718258210601,-509.54518882,0.00031909,30]
[329338568,1718258210636,-508.50706139,0.00031909,30]
[329338569,1718258210677,-520.27514331,0.00031909,30]
[329338570,1718258210721,-500.0,0.00031909,30]
[329338571,1718258210759,-590.00430079,0.00031909,30]
[329338572,1718258210798,-505.03993671,0.00031909,30]
[329338573,1718258210829,-500.0,0.00031909,30]
[329338574,1718258210871,-503.49322553,0.00031909,30]
[329338575,1718258210926,-508.64527798,0.00031909,30]
[329338576,1718258210968,-502.70477808,0.00031909,30]
[329338577,1718258210998,-501.20971812,0.00031909,30]
[329338578,1718258211042,-500.0,0.00031909,30]
[329338579,1718258211073,-529.43126727,0.00031909,30]
[329338580,1718258211109,-636.40924019,0.00031909,30]
[329338581,1718258211157,-500.0,0.00031909,30]
[329338582,1718258211198,-532.93450443,0.00031909,30]
[329338583,1718258211230,-505.78464942,0.00031909,30]
[329338584,1718258211261,-506.44472428,0.00031909,30]
[329338585,1718258211293,-499.92540235,0.00031909,30]
[329338586,1718258211335,-507.34682821,0.00031909,30]
[329338587,1718258211371,-510.22428828,0.00031909,30]
[329338588,1718258211405,-556.75269443,0.00031909,30]
[329338589,1718258211440,-507.95612746,0.00031909,30]
[329338590,1718258211493,-546.71378963,0.00031909,30]
[329338591,1718258211555,-500.0,0.00031909,30]
[329338592,1718258211588,-301.86286301,0.00031909,30]
[329338593,1718258211620,-513.92663512,0.00031909,30]
[329338594,1718258211665,-502.88329721,0.00031909,30]
[329338595,1718258211706,-508.24535641,0.00031909,30]
[329338596,1718258211741,-504.52142394,0.00031909,30]
[329338597,1718258211785,-512.19360857,0.00031909,30]
[329338598,1718258211817,-500.0,0.00031909,30]
[329338599,1718258211853,-500.0,0.00031909,30]
[329338600,1718258211886,-500.0,0.00031909,30]
[329338601,1718258211925,-533.73887778,0.00031909,30]
[329338602,1718258211958,-508.67090941,0.00031909,30]
[329338603,1718258211989,-529.47692449,0.00031909,30]
[329338604,1718258212033,-504.65911339,0.00031909,30]
[329338605,1718258212068,-501.42787609,0.00031909,30]
[329338606,1718258212106,-507.84908788,0.00031909,30]
[329338607,1718258212136,-520.72715234,0.00031909,30]
[329338608,1718258212168,-560.30823898,0.00031909,30]
[329338609,1718258212197,-314.15563279,0.00031909,30]
[329338610,1718258212224,-500.0,0.00031909,30]
[329338611,1718258212257,-500.0,0.00031909,30]
[329338612,1718258212309,-500.0,0.00031909,30]
[329338613,1718258212342,-516.33055064,0.00031909,30]
[329338614,1718258212373,-500.0,0.00031909,30]
[329338615,1718258212405,-515.10997569,0.00031909,30]
[329338616,1718258212435,-246.60591128,0.00031909,30]
[329338617,1718258212482,-514.59096225,0.00031909,30]
[329338618,1718258212515,-514.74714298,0.00031909,30]
[329338619,1718258212547,-500.0,0.00031909,30]
[329338620,1718258212578,-215.12439765,0.00031909,30]
[329338621,1718258212627,-159.59903501,0.00031909,30]
[329338622,1718258212665,-503.885385,0.00031909,30]
[329338623,1718258212698,-611.0,0.00031909,30]
[329338624,1718258212729,-574.83264098,0.00031909,30]
[329338625,1718258212774,-3058.0,0.00031909,30]
[329338626,1718258212817,-521.77107031,0.00031909,30]
[329338627,1718258212852,-617.81793283,0.00031909,30]
[329338628,1718258212883,-503.06520994,0.00031909,30]
[329338629,1718258212918,-507.1075842,0.00031909,30]
[329338630,1718258212947,-688.0,0.00031909,30]
[329338631,1718258212976,-502.58607173,0.00031909,30]
[329338632,1718258213006,-509.90702253,0.00031909,30]
[329338633,1718258213036,-627.22307505,0.00031909,30]
[329338634,1718258213071,-520.73038077,0.00031909,30]
[329338635,1718258213107,-524.73886536,0.00031909,30]
[329338636,1718258213146,-500.0,0.00031909,30]
[329338637,1718258213211,-505.68007046,0.00031909,30]
[329338638,1718258213241,-511.43571604,0.00031909,30]
[329338639,1718258213271,-509.13230558,0.00031909,30]
[329338640,1718258213304,-579.63736366,0.00031909,30]
[329338641,1718258213335,-500.0,0.00031909,30]
[329338642,1718258213378,-508.65801191,0.00031909,30]
[329338643,1718258213423,-372.68197162,0.00031909,30]
[329338644,1718258213464,-511.5,0.00031909,30]
[329338645,1718258213494,-513.88074934,0.00031909,30]
[329338646,1718258213524,-165.471525,0.00031909,30]
[329338647,1718258213554,-506.56614729,0.00031909,30]
[329338648,1718258213584,-500.0,0.00031909,30]
[329338649,1718258213631,-496.45400168,0.00031909,30]
[329338650,1718258213662,-500.0,0.00031909,30]
[329338651,1718258213692,-500.0,0.00031909,30]
[329338652,1718258213723,-500.0,0.00031909,30]
[329338653,1718258213791,-503.49024008,0.00031909,30]
[329338654,1718258213824,-500.0,0.00031909,30]
[329338655,1718258213853,-505.70820771,0.00031909,30]
[329338656,1718258214040,-509.18638247,0.00031909,30]
[329338657,1718258214072,-500.0,0.00031909,30]
[329338658,1718258214103,-500.0,0.00031909,30]
[329338659,1718258214134,-500.0,0.00031909,30]
[329338660,1718258214166,-500.0,0.00031909,30]
[329338661,1718258214198,-500.0,0.00031909,30]
[329338662,1718258214232,-500.0,0.00031909,30]
[329338663,1718258214262,-522.21501425,0.00031909,30]
[329338664,1718258214320,-500.0,0.00031909,30]
[329338665,1718258214355,-505.51724216,0.00031909,30]
[329338666,1718258214399,-500.0,0.00031909,30]
[329338667,1718258214482,-500.0,0.00031909,30]
[329338668,1718258214530,-500.0,0.00031909,30]
[329338669,1718258214597,-500.0,0.00031909,30]
[329338670,1718258214637,-500.78671074,0.00031909,30]
[329338671,1718258214709,-500.0,0.00031909,30]
[329338672,1718258214754,-500.0,0.00031909,30]
[329338673,1718258214802,-503.80870996,0.00031909,30]
[329338674,1718258214843,-500.0,0.00031909,30]
[329338675,1718258214900,-508.76764891,0.00031909,30]
[329338676,1718258214956,-500.0,0.00031909,30]
[329338677,1718258215004,-500.0,0.00031909,30]
[329338678,1718258215060,-520.83061794,0.00031909,30]
[329338679,1718258215149,-500.0,0.00031909,30]
[329338680,1718258215184,-520.44135571,0.00031909,30]
[329338681,1718258215216,-510.13895102,0.00031909,30]